{"text_format":"1","workbook":"xlsx","n_sheets":2,"sheets":["level1","level2"],"not_rendered":{"charts":0,"images":0,"macros":1,"external_links":0,"defined_names":0,"comments":0,"pivot_tables":0},"unopened":[],"bounds":{"document_bytes":16777216,"sheet_cells":100000,"rows_first":2000,"rows_last":500,"rows_between":2000,"halvings":0,"cell_chars":16384,"cell_head_chars":4096},"cells_cut":0,"cells_raw":0,"read":"whole","date_system":"1900"}

{"sheet":"level1","index":0,"n_rows":118,"n_cols":18,"rows_kept":118,"cut":false,"hidden":false,"merged":[[58,11,58,13],[58,14,58,16],[58,17,59,17],[117,0,117,1],[0,0,1,0],[0,1,1,1],[0,2,0,8],[0,9,1,9],[58,2,58,4],[58,5,58,7],[58,8,58,10]]}
["م","الاســــــــــــــــــــــــــــــــــــــــــــم الأول ",null,null,null,null,null,null,null,"المشاريع","اليوم "]
[null,null,"عدد الغياب","الفترة الأولى","الفترة الثانية","الفترة الثالثة","الفترة الرابعة ","الفترة الخامسة","معادلة الدرجة ",null,"التاريخ"]
[2,"خالد صالح علي سعود"]
[3,"خالد محمد علي سعود"]
[4,"موسى محمد ابراهيم  محمد  حكمي"]
[5,"محمد نجيب حكمي "]
[6,"ناصر ابراهيم "]
[7,"خالد محمد علي سعود"]
[8,"موسى محمد ابراهيم  محمد  حكمي"]
[9,"محمد نجيب حكمي "]
[10,"ناصر ابراهيم "]
[11,"خالد محمد علي سعود"]
[12,"موسى محمد ابراهيم  محمد  حكمي"]
[13,"محمد نجيب حكمي "]
[14,"ناصر ابراهيم "]
[15,"خالد محمد علي سعود"]
[16,"موسى محمد ابراهيم  محمد  حكمي"]
[17,"محمد نجيب حكمي "]
[18,"ناصر ابراهيم "]
[19,"خالد محمد علي سعود"]
[20,"موسى محمد ابراهيم  محمد  حكمي"]
[21,3]
[22,"ناصر ابراهيم "]
[23,"خالد محمد علي سعود"]
[24,"موسى محمد ابراهيم  محمد  حكمي"]
[25,"محمد نجيب حكمي "]
[26,"ناصر ابراهيم "]
[27,"خالد محمد علي سعود"]
[28,"موسى محمد ابراهيم  محمد  حكمي"]
[29,"محمد نجيب حكمي "]
[30,"ناصر ابراهيم "]
[31,"خالد محمد علي سعود"]
[32,"موسى محمد ابراهيم  محمد  حكمي"]
[33]
[34]
[35]
[36]
[37]
[38]
[39]
[40]
[41]
[42]
[43]
[44]
[45]
[46]
[47]
[48]
[49]
[50]
[51]
[52]
[53]
[54]
[55," "]
[56]
[57]
[null,null,"الفترة الأولى",null,null,"الفترة الثانية",null,null,"الفترة الثالثة",null,null,"الفترة الرابعة ",null,null,"الفترة الخامسة ",null,null,"المشاريع"]
["م","الاســــــــــــــــــــــــــــــــــــــــــــم الثاني","الواجبات","اختبار نظري","اختبار عملي ","الواجبات","اختبار نظري","اختبار عملي ","الواجبات","اختبار نظري","اختبار عملي ","الواجبات","اختبار نظري","اختبار عملي ","الواجبات","اختبار نظري","اختبار عملي "]
[1,"بداية الصف الثاني","واجبات 1","ن1","ع1","واجبات2","ن2","ع2","و3","ن3",null,"واجب 4",null,null,"و5",null,null,"L"]
[2,"خالد محمد علي سعود",2,1,1,2,2,2,3,3,null,4,null,null,5,null,null,"L"]
[3,"موسى محمد ابراهيم  محمد  حكمي",3,1,1,2,2,2,3,3,null,4,null,null,5,null,null,6]
[4,"محمد نجيب حكمي ",4,1,1,2,2,2,3,3,null,4,null,null,5]
[5,"ناصر ابراهيم ",5,1,1,2,2,2,3,3,null,4,null,null,5]
[6,"خالد محمد علي سعود",6,1,1,2,2,2,3,3,null,4,null,null,5]
[7,"موسى محمد ابراهيم  محمد  حكمي",7,1,1,2,2,2,3,3,null,4,null,null,5]
[8,"محمد نجيب حكمي ",8,1,1,2,2,2,3,3,null,4,null,null,5]
[9,"ناصر ابراهيم ",9,1,1,2,2,2,3,3,null,4,null,null,5]
[10,"خالد محمد علي سعود",10,1,1,2,2,2,3,3,null,4,null,null,5]
[11,"موسى محمد ابراهيم  محمد  حكمي",11,1,1,2,2,2,3,3,null,4,null,null,5]
[12,"محمد نجيب حكمي ",12,1,1,2,2,2,3,3,null,4,null,null,5,null,null,"H"]
[13,"ناصر ابراهيم ",13,1,1,2,2,2,3,3,null,4,null,null,5]
[14,"خالد محمد علي سعود",14,1,1,2,2,2,3,3,null,4,null,null,5]
[15,"موسى محمد ابراهيم  محمد  حكمي",15,1,1,2,2,2,3,3,null,4,null,null,5]
[16,"محمد نجيب حكمي ",16,1,1,2,2,2,3,3,null,4,null,null,5]
[17,"ناصر ابراهيم ",17,1,1,2,2,2,3,3,null,4,null,null,5]
[18,"خالد محمد علي سعود",18,1,1,2,2,2,3,3,null,4,null,null,5]
[19,"موسى محمد ابراهيم  محمد  حكمي",19,1,1,2,2,2,3,3,null,4,null,null,5]
[20,null,20,1,1,2,2,2,3,3,null,4,null,null,5]
[21,"ناصر ابراهيم ",21,1,1,2,2,2,3,3,null,4,null,null,5]
[22,"خالد محمد علي سعود",22,1,1,2,2,2,3,3,null,4,null,null,5]
[23,"موسى محمد ابراهيم  محمد  حكمي",23,1,1,2,2,2,3,3,null,4,null,null,5]
[24,"محمد نجيب حكمي ",24,1,1,2,2,2,3,3,null,4,null,null,5]
[25,"ناصر ابراهيم ",25,1,1,2,2,2,3,3,null,4,null,null,5]
[26,"خالد محمد علي سعود",26,1,1,2,2,2,3,3,null,4,null,null,5]
[27,"موسى محمد ابراهيم  محمد  حكمي",27,1,1,2,2,2,3,3,null,4,null,null,5]
[28,"محمد نجيب حكمي ",28,1,1,2,2,2,3,3,null,4,null,null,5]
[29,"ناصر ابراهيم ",29,1,1,2,2,2,3,3,null,4,null,null,5]
[30,"خالد محمد علي سعود",30,1,1,2,2,2,3,3,null,4,null,null,5]
[31,"موسى محمد ابراهيم  محمد  حكمي",31,1,1,2,2,2,3,3,null,4,null,null,5]
[32,"محمد نجيب حكمي ",32,1,1,2,2,2,3,3,null,4,null,null,5]
[33,"ناصر ابراهيم ",33,1,1,2,2,2,3,3,null,4,null,null,5]
[34,"خالد محمد علي سعود",34,1,1,2,2,2,3,3,null,4,null,null,5]
[35,"موسى محمد ابراهيم  محمد  حكمي",35,1,1,2,2,2,3,3,null,4,null,null,5]
[36,"محمد نجيب حكمي ",36,1,1,2,2,2,3,3,null,4,null,null,5]
[37,"ناصر ابراهيم ",37,1,1,2,2,2,3,3,null,4,null,null,5]
[38,"خالد محمد علي سعود",38,1,1,2,2,2,3,3,null,4,null,null,5]
[39,"موسى محمد ابراهيم  محمد  حكمي",39,1,1,2,2,2,3,3,null,4,null,null,5]
[40,null,40,1,1,2,2,2,3,3,null,4,null,null,5]
[41,"ناصر ابراهيم ",41,1,1,2,2,2,3,3,null,4,null,null,5]
[42,"خالد محمد علي سعود",42,1,1,2,2,2,3,3,null,4,null,null,5]
[43,"موسى محمد ابراهيم  محمد  حكمي",43,1,1,2,2,2,3,3,null,4,null,null,5]
[44,"محمد نجيب حكمي ",44,1,1,2,2,2,3,3,null,4,null,null,5]
[45,"ناصر ابراهيم ",45,1,1,2,2,2,3,3,null,4,null,null,5]
[46,"خالد محمد علي سعود",46,1,1,2,2,2,3,3,null,4,null,null,5]
[47,null,47,1,1,2,2,2,3,3,null,4,null,null,5]
[48,null,48,1,1,2,2,2,3,3,null,4,null,null,5]
[49,null,49,1,1,2,2,2,3,3,null,4,null,null,5]
[50,null,50,1,1,2,2,2,3,3,null,4,null,null,5]
[51,null,51,1,1,2,2,2,3,3,null,4,null,null,5]
[52,null,52,1,1,2,2,2,3,3,null,4,null,null,5]
[53,null,53,1,1,2,2,2,3,3,null,4,null,null,5]
[54,null,54,1,1,2,2,2,3,3,null,4,null,null,5]
[55,"النهاية",55,1,1,2,2,2,3,3,null,4,null,null,5]
[]
[]
["احصاء النتيجة (خاص بالبرمجة )",null,{"$f":"COUNTA(C61:C115)","v":55},{"$f":"COUNTA(D61:D115)","v":55},{"$f":"COUNTA(E61:E115)","v":55},{"$f":"COUNTA(F61:F115)","v":55},55,55,55,55,0,55,0,0,55,0,0]

{"sheet":"level2","index":1,"n_rows":118,"n_cols":18,"rows_kept":118,"cut":false,"hidden":false,"merged":[[58,11,58,13],[58,14,58,16],[58,17,59,17],[117,0,117,1],[0,0,1,0],[0,1,1,1],[0,2,0,8],[0,9,1,9],[58,2,58,4],[58,5,58,7],[58,8,58,10]]}
["م","الاســــــــــــــــــــــــــــــــــــــــــــم الأول شيت 2 ",null,null,null,null,null,null,null,"المشاريع","اليوم "]
[null,null,"عدد الغياب","الفترة الأولى","الفترة الثانية","الفترة الثالثة","الفترة الرابعة ","الفترة الخامسة","معادلة الدرجة ",null,"التاريخ"]
[2,"بداية الصف الأول  "]
[3,"خالد محمد علي سعود"]
[4,"موسى محمد ابراهيم  محمد  حكمي"]
[5,"محمد نجيب حكمي "]
[6,"ناصر ابراهيم "]
[7,"خالد محمد علي سعود"]
[8,"موسى محمد ابراهيم  محمد  حكمي"]
[9,"محمد نجيب حكمي "]
[10,"ناصر ابراهيم "]
[11,"خالد محمد علي سعود"]
[12,"موسى محمد ابراهيم  محمد  حكمي"]
[13,"محمد نجيب حكمي "]
[14,"ناصر ابراهيم "]
[15,"خالد محمد علي سعود"]
[16,"موسى محمد ابراهيم  محمد  حكمي"]
[17,"محمد نجيب حكمي "]
[18,"ناصر ابراهيم "]
[19,"خالد محمد علي سعود"]
[20,"موسى محمد ابراهيم  محمد  حكمي"]
[21,3]
[22,"ناصر ابراهيم "]
[23,"خالد محمد علي سعود"]
[24,"موسى محمد ابراهيم  محمد  حكمي"]
[25,"محمد نجيب حكمي "]
[26,"ناصر ابراهيم "]
[27,"خالد محمد علي سعود"]
[28,"موسى محمد ابراهيم  محمد  حكمي"]
[29,"محمد نجيب حكمي "]
[30,"ناصر ابراهيم "]
[31,"خالد محمد علي سعود"]
[32,"موسى محمد ابراهيم  محمد  حكمي"]
[33]
[34]
[35]
[36]
[37]
[38]
[39,3]
[40,"w"]
[41,33]
[42]
[43]
[44]
[45]
[46]
[47]
[48]
[49]
[50]
[51]
[52]
[53]
[54]
[55," "]
[56]
[57]
[null,null,"الفترة الأولى",null,null,"الفترة الثانية",null,null,"الفترة الثالثة",null,null,"الفترة الرابعة ",null,null,"الفترة الخامسة ",null,null,"المشاريع"]
["م","الاســــــــــــــــــــــــــــــــــــــــــــم الثاني","الواجبات","اختبار نظري","اختبار عملي ","الواجبات","اختبار نظري","اختبار عملي ","الواجبات","اختبار نظري","اختبار عملي ","الواجبات","اختبار نظري","اختبار عملي ","الواجبات","اختبار نظري","اختبار عملي "]
[1,"بداية الصف الثاني","واجبات 1","ن1","ع1","واجبات2","ن2","ع2","و3","ن3",null,"واجب 4",null,null,"و5",null,null,"L"]
[2,"خالد محمد علي سعود",2,1,1,2,2,2,3,3,null,4,null,null,5,null,null,"L"]
[3,"موسى محمد ابراهيم  محمد  حكمي",3,1,1,2,2,2,3,3,null,4,null,null,5,null,null,6]
[4,"محمد نجيب حكمي ",4,1,1,2,2,2,3,3,null,4,null,null,5]
[5,"ناصر ابراهيم ",5,1,1,2,2,2,3,3,null,4,null,null,5]
[6,"خالد محمد علي سعود",6,1,1,2,2,2,3,3,null,4,null,null,5]
[7,"موسى محمد ابراهيم  محمد  حكمي",7,1,1,2,2,2,3,3,null,4,null,null,5]
[8,"محمد نجيب حكمي ",8,1,1,2,2,2,3,3,null,4,null,null,5]
[9,"ناصر ابراهيم ",9,1,1,2,2,2,3,3,null,4,null,null,5]
[10,"خالد محمد علي سعود",10,1,1,2,2,2,3,3,null,4,null,null,5]
[11,"موسى محمد ابراهيم  محمد  حكمي",11,1,1,2,2,2,3,3,null,4,null,null,5]
[12,"محمد نجيب حكمي ",12,1,1,2,2,2,3,3,null,4,null,null,5,null,null,"H"]
[13,"ناصر ابراهيم ",13,1,1,2,2,2,3,3,null,4,null,null,5]
[14,"خالد محمد علي سعود",14,1,1,2,2,2,3,3,null,4,null,null,5]
[15,"موسى محمد ابراهيم  محمد  حكمي",15,1,1,2,2,2,3,3,null,4,null,null,5]
[16,"محمد نجيب حكمي ",16,1,1,2,2,2,3,3,null,4,null,null,5]
[17,"ناصر ابراهيم ",17,1,1,2,2,2,3,3,null,4,null,null,5]
[18,"خالد محمد علي سعود",18,1,1,2,2,2,3,3,null,4,null,null,5]
[19,"موسى محمد ابراهيم  محمد  حكمي",19,1,1,2,2,2,3,3,null,4,null,null,5]
[20,3,20,1,1,2,2,2,3,3,null,4,null,null,5]
[21,"ناصر ابراهيم ",21,1,1,2,2,2,3,3,null,4,null,null,5]
[22,"خالد محمد علي سعود",22,1,1,2,2,2,3,3,null,4,null,null,5]
[23,"موسى محمد ابراهيم  محمد  حكمي",23,1,1,2,2,2,3,3,null,4,null,null,5]
[24,"محمد نجيب حكمي ",24,1,1,2,2,2,3,3,null,4,null,null,5]
[25,"ناصر ابراهيم ",25,1,1,2,2,2,3,3,null,4,null,null,5]
[26,"خالد محمد علي سعود",26,1,1,2,2,2,3,3,null,4,null,null,5]
[27,"موسى محمد ابراهيم  محمد  حكمي",27,1,1,2,2,2,3,3,null,4,null,null,5]
[28,"محمد نجيب حكمي ",28,1,1,2,2,2,3,3,null,4,null,null,5]
[29,"ناصر ابراهيم ",29,1,1,2,2,2,3,3,null,4,null,null,5]
[30,"خالد محمد علي سعود",30,1,1,2,2,2,3,3,null,4,null,null,5]
[31,"موسى محمد ابراهيم  محمد  حكمي",31,1,1,2,2,2,3,3,null,4,null,null,5]
[32,"محمد نجيب حكمي ",32,1,1,2,2,2,3,3,null,4,null,null,5]
[33,"ناصر ابراهيم ",33,1,1,2,2,2,3,3,null,4,null,null,5]
[34,"خالد محمد علي سعود",34,1,1,2,2,2,3,3,null,4,null,null,5]
[35,"موسى محمد ابراهيم  محمد  حكمي",35,1,1,2,2,2,3,3,null,4,null,null,5]
[36,"محمد نجيب حكمي ",36,1,1,2,2,2,3,3,null,4,null,null,5]
[37,"ناصر ابراهيم ",37,1,1,2,2,2,3,3,null,4,null,null,5]
[38,"خالد محمد علي سعود",38,1,1,2,2,2,3,3,null,4,null,null,5]
[39,"موسى محمد ابراهيم  محمد  حكمي",39,1,1,2,2,2,3,3,null,4,null,null,5]
[40,3,40,1,1,2,2,2,3,3,null,4,null,null,5]
[41,"ناصر ابراهيم ",41,1,1,2,2,2,3,3,null,4,null,null,5]
[42,"خالد محمد علي سعود",42,1,1,2,2,2,3,3,null,4,null,null,5]
[43,"موسى محمد ابراهيم  محمد  حكمي",43,1,1,2,2,2,3,3,null,4,null,null,5]
[44,"محمد نجيب حكمي ",44,1,1,2,2,2,3,3,null,4,null,null,5]
[45,"ناصر ابراهيم ",45,1,1,2,2,2,3,3,null,4,null,null,5]
[46,"خالد محمد علي سعود",46,1,1,2,2,2,3,3,null,4,null,null,5]
[47,null,47,1,1,2,2,2,3,3,null,4,null,null,5]
[48,null,48,1,1,2,2,2,3,3,null,4,null,null,5]
[49,null,49,1,1,2,2,2,3,3,null,4,null,null,5]
[50,null,50,1,1,2,2,2,3,3,null,4,null,null,5]
[51,null,51,1,1,2,2,2,3,3,null,4,null,null,5]
[52,null,52,1,1,2,2,2,3,3,null,4,null,null,5]
[53,null,53,1,1,2,2,2,3,3,null,4,null,null,5]
[54,null,54,1,1,2,2,2,3,3,null,4,null,null,5]
[55,"النهاية",55,1,1,2,2,2,3,3,null,4,null,null,5]
[]
[]
["احصاء النتيجة (خاص بالبرمجة )",null,{"$f":"COUNTA(C61:C115)","v":55},{"$f":"COUNTA(D61:D115)","v":55},{"$f":"COUNTA(E61:E115)","v":55},{"$f":"COUNTA(F61:F115)","v":55},55,55,55,55,0,55,0,0,55,0,0]